bitfinex-derivatives/quotes_SOLF0:USTF0_20250113
["timestamp","ask_amount","ask_price","bid_price","bid_amount"]
[1736769599933,2.8519,175.53,175.48,2.8525]
[1736769600135,21.17321469,175.56,175.45,14.05321469]
[1736769600337,2.8519,175.53,175.45,14.05321469]
[1736769600635,3.2282,175.57,175.47,14.05321469]
[1736769601033,2.8517,175.54,175.47,14.05321469]
[1736769601432,3.2282,175.57,175.47,14.05321469]
[1736769601632,2.8519,175.53,175.49,2.8523]
[1736769601836,2.8519,175.53,175.47,14.05321469]
[1736769602227,3.2282,175.57,175.47,14.05321469]
[1736769602432,3.2282,175.57,175.49,14.05321469]
[1736769602833,6.0795,175.57,175.52,2.852]
[1736769603138,3.2282,175.57,175.42,3.2478]
[1736769603332,3.2282,175.57,175.48,14.05321469]
[1736769603538,2.8517,175.55,175.5,2.8523]
[1736769603734,3.2282,175.57,175.5,2.8523]
[1736769603935,2.8519,175.53,175.48,2.8526]
[1736769604540,2.8519,175.53,175.49,2.8525]
[1736769604740,14.05321469,175.56,175.44,14.05321469]
[1736769604933,14.05321469,175.56,175.46,14.05321469]
[1736769605132,14.05321469,175.56,175.5,2.8522]
[1736769605330,2.8516,175.55,175.46,14.05321469]
[1736769605532,14.05321469,175.56,175.46,14.05321469]
[1736769605840,14.05321469,175.56,175.52,2.8519]
[1736769606036,14.05321469,175.56,175.46,14.05321469]
[1736769606236,6.0795,175.57,175.46,14.05321469]
[1736769606433,3.2282,175.57,175.49,14.05321469]
[1736769606642,3.2282,175.57,175.43,5.7068]
[1736769606841,3.2282,175.57,175.46,14.05321469]
[1736769607042,3.2282,175.57,175.48,14.05321469]
[1736769607241,1.608,175.57,175.48,14.05321469]
[1736769607842,15.66121469,175.57,175.42,3.2478]
[1736769608041,2.8516,175.55,175.46,2.8529]
[1736769608241,14.05321469,175.52,175.42,3.2478]
[1736769608539,2.8517,175.54,175.47,2.8528]
[1736769608843,14.05321469,175.55,175.46,14.05321469]
[1736769609042,3.1825,175.56,175.46,14.05321469]
[1736769609335,3.1825,175.56,175.42,3.2478]
[1736769609336,1.608,175.57,175.49,14.05321469]
[1736769609541,1.608,175.57,175.43,7.12]
[1736769609840,14.05321469,175.61,175.51,14.05321469]
[1736769610232,8.7307,175.63,175.51,14.05321469]
[1736769610435,2.8504,175.62,175.51,14.05321469]
[1736769610632,1.6107,175.63,175.54,14.05321469]
[1736769611045,4.461,175.63,175.56,2.8513]
[1736769611433,4.461,175.63,175.57,2.8511]
[1736769612637,1.6107,175.63,175.55,2.8513]
[1736769612846,14.05321469,175.61,175.52,14.05321469]
[1736769613046,2.851,175.58,175.49,14.05321469]
[1736769613243,2.851,175.58,175.53,2.8518]
[1736769613442,2.851,175.58,175.49,14.05321469]
[1736769613644,14.05321469,175.59,175.44,7.1]
[1736769613845,14.05321469,175.61,175.52,14.05321469]
[1736769614049,1.6107,175.63,175.52,14.05321469]
[1736769614246,4.461,175.63,175.56,2.8512]
[1736769614647,4.461,175.63,175.52,14.05321469]
[1736769615247,4.461,175.63,175.56,2.8512]
[1736769615645,4.461,175.63,175.52,14.05321469]
[1736769615945,1.6107,175.63,175.55,14.05321469]
[1736769616245,7.1,175.69,175.58,14.05321469]
[1736769616641,1.6146,175.7,175.65,2.8498]
[1736769616843,3.2651,175.74,175.67,14.05321469]
[1736769617042,15.66781469,175.78,175.7,2.8489]
[1736769617243,15.66781469,175.78,175.67,14.05321469]
[1736769617649,15.66781469,175.78,175.71,2.8487]
[1736769618248,22.76781469,175.78,175.67,14.05321469]
[1736769618446,14.05321469,175.76,175.65,14.05321469]
[1736769618846,8.7146,175.78,175.68,14.05321469]
[1736769619154,1.5904,175.8,175.71,14.05321469]
[1736769619548,15.64361469,175.8,175.68,14.05321469]
[1736769619749,15.64361469,175.8,175.65,14.05321469]
[1736769619750,14.05321469,175.77,175.65,14.05321469]
[1736769619946,14.05321469,175.72,175.63,1.6211]
[1736769620146,14.05321469,175.7,175.62,1.6258]
[1736769620544,14.05321469,175.7,175.6,14.05321469]
[1736769620747,14.05321469,175.67,175.58,1.6211]
[1736769621144,14.05321469,175.64,175.51,1.6481]
[1736769621348,14.05321469,175.64,175.53,14.05321469]
[1736769621741,2.8503,175.63,175.54,2.8515]
[1736769621951,14.05321469,175.64,175.53,14.05321469]
[1736769622350,16.90331469,175.64,175.55,2.8514]
[1736769622652,14.05321469,175.64,175.55,2.8514]
[1736769623154,7.1,175.63,175.55,2.8514]
[1736769623347,2.8506,175.61,175.53,16.90491469]
[1736769623544,7.1,175.63,175.53,14.05321469]
[1736769623949,9.9503,175.63,175.56,2.8513]
[1736769624150,7.1,175.63,175.56,2.8513]
[1736769624952,14.05321469,175.61,175.54,2.8515]
[1736769625251,14.05321469,175.58,175.47,15.67431469]
[1736769625454,1.7055,175.57,175.52,2.8519]
[1736769625652,1.7055,175.57,175.47,15.67431469]
[1736769625949,1.7055,175.57,175.5,14.05321469]
[1736769626653,1.7055,175.57,175.47,1.6211]
[1736769626848,1.6358,175.62,175.52,14.05321469]
[1736769627255,18.60871469,175.64,175.58,2.851]
[1736769627445,15.75871469,175.64,175.58,2.851]
[1736769627647,1.7055,175.64,175.55,14.05321469]
[1736769627853,7.1,175.68,175.58,14.05321469]
[1736769628048,7.1,175.68,175.5,14.05321469]
[1736769628049,7.1,175.68,175.61,14.05321469]
[1736769628345,1.6236,175.71,175.64,2.85]
[1736769628546,15.68901469,175.72,175.64,2.85]
[1736769628756,15.67681469,175.72,175.61,14.05321469]
[1736769629048,1.6236,175.72,175.67,14.05321469]
[1736769629249,7.1,175.73,175.67,14.05321469]
[1736769629449,4.9602,175.77,175.64,22.42427116]
[1736769630054,3.2561,175.77,175.67,22.42427116]
[1736769630848,1.6236,175.77,175.73,2.8485]
[1736769632258,1.6236,175.77,175.71,2.8487]
[1736769632453,1.6236,175.77,175.67,22.42427116]
[1736769632649,1.6236,175.77,175.65,3.279]
[1736769633456,2.8482,175.75,175.68,2.8492]
[1736769633655,1.6236,175.77,175.65,3.279]
[1736769633858,31.18167116,175.79,175.65,3.279]
[1736769634255,8.7574,175.79,175.67,22.42427116]
[1736769634463,22.42427116,175.82,175.67,22.42427116]
[1736769634660,2.8473,175.81,175.74,2.8482]
[1736769634856,1.5614,175.84,175.7,22.42427116]
[1736769635052,8.6614,175.84,175.7,22.42427116]
[1736769635460,1.5614,175.84,175.73,22.42427116]
[1736769635762,1.606,175.85,175.73,22.42427116]
[1736769635952,1.606,175.85,175.76,22.42427116]
[1736769636557,1.606,175.85,175.79,2.8474]
[1736769636961,1.606,175.85,175.76,22.42427116]
[1736769637164,7.1,175.89,175.76,22.42427116]
[1736769637364,23.98687116,175.92,175.79,22.42427116]
[1736769637759,1.5626,175.92,175.79,22.42427116]
[1736769637965,31.08687116,175.92,175.77,22.42427116]
[1736769638354,2.8468,175.85,175.77,2.8477]
[1736769638855,22.42427116,175.86,175.74,3.2108]
[1736769639055,22.42427116,175.86,175.72,60.63085707]
[1736769639056,1.5855,175.84,175.72,60.63085707]
[1736769639565,2.8472,175.82,175.75,2.8481]
[1736769639965,2.8472,175.82,175.72,60.63085707]
[1736769639966,1.5626,175.83,175.72,60.63085707]
[1736769640163,23.98687116,175.83,175.72,60.63085707]
[1736769640460,23.98687116,175.83,175.68,28.6286827]
[1736769640669,1.5626,175.83,175.71,22.42427116]
[1736769641161,1.5626,175.83,175.74,22.42427116]
[1736769641363,22.42427116,175.89,175.77,22.42427116]
[1736769641364,7.1,175.88,175.77,22.42427116]
[1736769641763,7.1,175.88,175.74,22.42427116]
[1736769641959,2.8466,175.86,175.74,22.42427116]
[1736769642166,7.1,175.88,175.77,22.42427116]
[1736769642359,9.9461,175.88,175.81,2.8471]
[1736769642560,9.9461,175.88,175.77,22.42427116]
[1736769642763,22.42427116,175.92,175.77,22.42427116]
[1736769643059,2.8459,175.9,175.8,22.42427116]
[1736769643667,22.42427116,175.83,175.72,3.1734]
[1736769643966,1.5821,175.82,175.72,3.1734]
[1736769644169,2.8472,175.81,175.74,2.8482]
[1736769644460,2.8472,175.81,175.72,3.1734]
[1736769644658,4.4292,175.82,175.75,2.8482]
[1736769644858,1.5821,175.82,175.72,3.1734]
[1736769645769,1.5821,175.82,175.72,25.59767116]
[1736769646161,7.1,175.81,175.7,6.05870204]
[1736769646367,22.42427116,175.8,175.7,6.05870204]
[1736769646566,22.42427116,175.8,175.7,8.90770204]
[1736769647275,7.1,175.81,175.7,6.05870204]
[1736769647665,7.1,175.81,175.74,2.8483]
[1736769647869,7.1,175.81,175.72,22.42427116]
[1736769648372,7.1,175.81,175.76,2.8479]
[1736769648972,2.8476,175.79,175.74,2.8482]
[1736769649268,7.1,175.81,175.7,6.05870204]
[1736769649570,2.8482,175.75,175.7,2.849]
[1736769649865,7.1,175.81,175.68,6.20441154]
[1736769650066,7.1,175.81,175.77,2.8477]
[1736769650570,1.5821,175.82,175.72,22.42427116]
[1736769651269,1.5821,175.82,175.79,2.8475]
[1736769653169,1.5821,175.82,175.78,2.8476]
[1736769653369,1.5821,175.82,175.68,35.7286827]
[1736769653370,1.5821,175.82,175.75,22.42427116]
[1736769653567,1.6768,175.85,175.75,22.42427116]
[1736769653967,1.6768,175.85,175.68,35.7286827]
[1736769654268,1.6768,175.85,175.74,22.42427116]
[1736769655862,2.8469,175.83,175.78,2.8477]
[1736769656366,2.8471,175.82,175.74,22.42427116]
[1736769656870,2.8469,175.83,175.78,2.8477]
[1736769657470,2.8468,175.84,175.79,2.8475]
[1736769658369,1.6768,175.85,175.74,22.42427116]
[1736769658573,2.847,175.83,175.78,2.8477]
[1736769659174,2.847,175.83,175.78,2.8476]
[1736769659374,2.847,175.83,175.74,22.42427116]
[1736769659773,2.847,175.83,175.78,2.8476]
[1736769660276,2.847,175.83,175.74,22.42427116]
[1736769660476,2.847,175.83,175.79,2.8475]
[1736769660974,2.8468,175.84,175.8,2.8474]
[1736769662275,22.42427116,175.83,175.68,6.20441154]
[1736769662573,1.6768,175.85,175.68,6.20441154]
[1736769662574,22.42427116,175.79,175.68,6.20441154]
[1736769662777,2.8482,175.76,175.71,2.8487]
[1736769663277,11.8092,175.78,175.71,2.8487]
[1736769663577,2.8481,175.76,175.71,2.8487]
[1736769663777,11.8092,175.78,175.71,2.8487]
[1736769664272,2.8484,175.75,175.71,2.8487]
[1736769664480,11.8092,175.78,175.68,6.20441154]
[1736769664677,11.8092,175.78,175.71,2.8489]
[1736769665181,2.8482,175.76,175.71,2.8489]
[1736769665576,11.8092,175.78,175.71,2.8489]
[1736769666075,2.8481,175.76,175.71,2.8489]
[1736769666273,11.8092,175.78,175.71,2.8489]
[1736769666776,2.8481,175.76,175.71,2.8489]
[1736769667074,11.8092,175.78,175.71,2.8489]
[1736769667275,2.8481,175.76,175.71,2.8489]
[1736769667580,11.8092,175.78,175.72,2.8486]
[1736769667779,11.8092,175.78,175.68,6.20441154]
[1736769668173,11.8092,175.78,175.71,2.8489]
[1736769668376,11.8092,175.78,175.68,6.20441154]
[1736769668974,2.8481,175.76,175.71,2.8489]
[1736769669579,2.8483,175.75,175.68,6.20441154]
[1736769669878,11.8092,175.78,175.7,2.849]
[1736769670079,2.8483,175.75,175.68,6.20441154]
[1736769670274,2.8483,175.75,175.7,2.849]
[1736769670681,2.8483,175.75,175.71,2.8488]
[1736769670882,1.5776,175.78,175.69,22.42427116]
[1736769671281,1.5776,175.78,175.72,2.8487]
[1736769671581,4.4254,175.78,175.69,22.42427116]
[1736769671782,1.5776,175.78,175.69,22.42427116]
[1736769671983,3.3052,175.85,175.72,22.42427116]
[1736769672184,3.3052,175.85,175.73,1.6495]
[1736769672489,2.8471,175.83,175.77,2.8478]
[1736769672685,2.8471,175.83,175.73,1.6495]
[1736769672887,2.8471,175.83,175.78,2.8477]
[1736769673185,10.82508215,175.88,175.78,22.42427116]
[1736769673582,1.7101,175.88,175.78,22.42427116]
[1736769673782,1.7101,175.88,175.78,2.8477]
[1736769674279,2.8468,175.84,175.78,2.8477]
[1736769675176,1.7101,175.88,175.7,1.5935]
[1736769675177,7.1,175.83,175.7,1.5935]
[1736769675384,29.52427116,175.83,175.7,1.5935]
[1736769675579,2.8482,175.76,175.7,2.849]
[1736769675982,3.2831,175.82,175.69,22.42427116]
[1736769676987,2.8471,175.82,175.72,22.42427116]
[1736769677189,7.1,175.83,175.75,22.42427116]
[1736769677694,2.8471,175.82,175.77,2.8479]
[1736769677991,7.1,175.83,175.72,22.42427116]
[1736769678202,7.1,175.83,175.73,2.8484]
[1736769678696,2.8477,175.79,175.73,2.8484]
[1736769679085,2.8477,175.79,175.74,2.8483]
[1736769679895,7.1,175.83,175.68,12.49435816]
[1736769680092,29.52427116,175.83,175.69,2.8491]
[1736769680289,29.52427116,175.83,175.68,12.49435816]
[1736769680489,29.52427116,175.83,175.69,2.8492]
[1736769680791,29.52427116,175.83,175.68,12.49435816]
[1736769680984,29.52427116,175.83,175.67,22.42427116]
[1736769680985,2.8481,175.76,175.67,22.42427116]
[1736769681595,2.8481,175.76,175.7,2.849]
[1736769681798,2.8474,175.81,175.73,22.42427116]
[1736769682097,3.1883,175.87,175.76,2.848]
[1736769682286,7.1,175.86,175.76,22.42427116]
[1736769682692,7.1,175.86,175.78,2.8477]
[1736769682891,2.847,175.83,175.78,2.8477]
[1736769683195,29.52427116,175.86,175.73,22.42427116]
[1736769683397,2.8479,175.77,175.72,2.8485]
[1736769683596,22.42427116,175.83,175.67,22.42427116]
[1736769683896,2.8482,175.76,175.7,2.8489]
[1736769684091,2.8482,175.76,175.67,22.42427116]
[1736769684497,2.8482,175.76,175.7,2.8489]
[1736769684694,2.8482,175.76,175.67,22.42427116]
[1736769684993,7.1,175.83,175.73,22.42427116]
[1736769685292,2.8474,175.8,175.73,22.42427116]
[1736769685689,7.1,175.83,175.76,2.8479]
[1736769685894,7.1,175.83,175.73,22.42427116]
[1736769685895,2.8472,175.82,175.73,22.42427116]
[1736769686098,7.1,175.83,175.73,22.42427116]
[1736769686397,7.1,175.83,175.75,2.8482]
[1736769686589,7.1,175.83,175.72,1.6077]
[1736769687091,2.8474,175.8,175.74,2.8482]
[1736769687292,2.8474,175.8,175.72,1.6077]
[1736769687495,7.1,175.83,175.72,1.6077]
[1736769687895,7.1,175.83,175.73,2.8484]
[1736769688199,29.52427116,175.83,175.71,1.6298]
[1736769688400,2.8485,175.74,175.69,4.4567]
[1736769688895,29.52427116,175.83,175.69,1.6077]
[1736769689700,7.1,175.83,175.69,1.6077]
[1736769690198,7.1,175.83,175.73,2.8484]
[1736769690599,2.8477,175.79,175.69,1.6077]
[1736769690802,7.1,175.83,175.71,22.42427116]
[1736769691200,2.8476,175.79,175.74,2.8483]
[1736769691605,7.1,175.83,175.71,22.42427116]
[1736769691802,7.1,175.83,175.73,2.8485]
[1736769692404,2.8478,175.78,175.74,2.8483]
[1736769693002,29.52427116,175.83,175.69,1.6077]
[1736769695004,2.8474,175.8,175.73,2.8484]
[1736769695407,2.8474,175.8,175.74,2.8483]
[1736769695905,3.1883,175.87,175.71,22.42427116]
[1736769696100,10.2883,175.87,175.76,2.8479]
[1736769696404,2.8469,175.83,175.76,2.8479]
[1736769696799,10.2883,175.87,175.79,2.8475]
[1736769697807,10.2883,175.87,175.74,22.42427116]
[1736769698105,10.2883,175.87,175.8,2.8474]
[1736769698400,1.7101,175.88,175.84,2.8467]
[1736769698705,1.7101,175.88,175.77,22.42427116]
[1736769698706,22.42427116,175.95,175.8,22.42427116]
[1736769698904,2.8458,175.9,175.8,22.42427116]
[1736769700801,2.8458,175.9,175.79,22.42427116]
[1736769701606,2.8458,175.9,175.84,2.8466]
[1736769701809,2.8458,175.9,175.8,1.6367]
[1736769702309,2.8458,175.9,175.84,2.8466]
[1736769702604,2.8456,175.91,175.82,22.42427116]
[1736769702904,12.1419,175.97,175.85,22.42427116]
[1736769703308,2.8452,175.94,175.85,22.42427116]
[1736769703509,5.0619,175.97,175.85,22.42427116]
[1736769704101,1.7176,175.97,175.88,22.42427116]
[1736769704301,92.9058266,176.03,175.91,22.42427116]
[1736769704501,1.5783,176.04,175.91,22.42427116]
[1736769704704,2.8441,176.01,175.96,2.8447]
[1736769704900,1.5783,176.04,175.91,22.42427116]
[1736769706110,1.5783,176.04,175.94,22.42427116]
[1736769706509,1.5783,176.04,176.0,2.8441]
[1736769707209,1.5783,176.04,175.98,2.8445]
[1736769707411,1.5783,176.04,175.94,22.42427116]
[1736769707913,2.8437,176.03,175.97,2.8445]
[1736769708413,2.844,176.02,175.96,2.8448]
[1736769708714,1.5783,176.04,175.94,22.42427116]
[1736769709606,2.8441,176.02,175.96,2.8449]
[1736769709806,1.5783,176.04,175.94,22.42427116]
[1736769710011,1.5783,176.04,175.91,22.42427116]
[1736769710710,1.5783,176.04,175.93,2.8455]
[1736769711313,1.5783,176.04,175.91,22.42427116]
[1736769711519,1.5783,176.04,175.94,2.8454]
[1736769711813,2.8446,175.99,175.94,2.8454]
[1736769712209,2.8446,175.99,175.91,22.42427116]
[1736769712404,2.8446,175.99,175.93,2.8455]
[1736769712911,2.8446,175.99,175.77,193.0]
[1736769712912,22.42427116,175.99,175.77,193.0]
[1736769713116,3.2299,175.98,175.84,22.42427116]
[1736769713311,3.2299,175.98,175.81,3.2427]
[1736769713312,22.42427116,175.96,175.81,25.66697116]
[1736769713614,1.6175,175.95,175.81,3.2427]
[1736769713812,8.6975,175.95,175.81,3.2427]
[1736769714012,2.846,175.9,175.85,2.8468]
[1736769714811,8.6975,175.95,175.81,3.2427]
[1736769715010,2.8459,175.92,175.86,2.8466]
[1736769715416,8.6975,175.95,175.86,2.8466]
[1736769715611,2.8458,175.92,175.87,2.8465]
[1736769716109,8.6975,175.95,175.83,22.42427116]
[1736769716613,2.8454,175.94,175.86,2.8466]
[1736769716812,1.6175,175.95,175.86,22.42427116]
[1736769717214,1.6175,175.95,175.81,3.2427]
[1736769717414,1.6175,175.95,175.83,22.42427116]
[1736769717619,1.6175,175.95,175.86,22.42427116]
[1736769718212,1.6806,175.98,175.89,22.42427116]
[1736769718413,1.6806,175.98,175.86,22.42427116]
[1736769718614,2.8455,175.94,175.88,2.8463]
[1736769719516,1.6806,175.98,175.86,22.42427116]
[1736769719714,1.6806,175.98,175.83,22.42427116]
[1736769720111,2.8458,175.92,175.86,2.8467]
[1736769721211,22.42427116,175.97,175.86,2.8467]
[1736769721417,22.42427116,175.97,175.84,2.847]
[1736769721813,2.8456,175.93,175.83,22.42427116]
[1736769722017,22.42427116,175.97,175.85,2.8468]
[1736769722218,22.42427116,175.94,175.81,1.6395]
[1736769722519,10.2462,175.93,175.81,1.6395]
[1736769722717,10.2462,175.93,175.83,22.42427116]
[1736769723220,2.8458,175.92,175.83,22.42427116]
[1736769723418,10.2462,175.93,175.83,22.42427116]
[1736769723616,10.2462,175.93,175.81,1.6395]
[1736769723816,2.8462,175.9,175.84,2.847]
[1736769724216,10.2462,175.93,175.81,1.6395]
[1736769724414,2.8462,175.89,175.83,2.8471]
[1736769726010,10.2462,175.93,175.79,55.54625752]
[1736769726215,22.42427116,175.91,175.79,55.54625752]
[1736769726515,22.42427116,175.88,175.71,22.42427116]
[1736769726923,22.42427116,175.85,175.71,22.42427116]
[1736769727118,10.3519,175.84,175.71,22.42427116]
[1736769727520,2.8476,175.81,175.71,25.27337116]
[1736769727822,10.3519,175.84,175.71,25.27337116]
[1736769728024,10.3519,175.84,175.71,22.42427116]
[1736769728324,22.42427116,175.82,175.69,1.6821]
[1736769728620,1.6381,175.81,175.66,97.66]
[1736769728820,22.42427116,175.79,175.67,2.8498]
[1736769729424,22.42427116,175.79,175.65,22.42427116]
[1736769729825,2.8481,175.78,175.68,22.42427116]
[1736769730223,1.6381,175.81,175.68,22.42427116]
[1736769730420,1.6381,175.81,175.73,2.8486]
[1736769730617,1.6381,175.81,175.71,22.42427116]
[1736769730929,1.5784,175.84,175.77,22.42427116]
[1736769731225,1.5784,175.84,175.79,2.8478]
[1736769731427,1.5784,175.84,175.77,22.42427116]
[1736769731623,1.5784,175.84,175.75,2.8484]
[1736769731830,1.5784,175.84,175.72,1.6468]
[1736769732029,1.5784,175.84,175.69,22.42427116]
[1736769732030,24.13577116,175.83,175.69,22.42427116]
[1736769732327,22.42427116,175.8,175.66,22.42427116]
[1736769732521,1.571,175.79,175.64,1.5583]
[1736769732918,2.8483,175.76,175.69,2.8494]
[1736769733118,1.571,175.79,175.64,1.5583]
[1736769733321,1.571,175.79,175.55,86.79102738]
[1736769733322,22.42427116,175.74,175.55,86.79102738]
[1736769733520,8.7915,175.73,175.58,28.10846229]
[1736769733823,8.7915,175.73,175.61,22.42427116]
[1736769734220,2.8491,175.72,175.58,5.68419113]
[1736769734521,8.7915,175.73,175.58,5.68419113]
[1736769734727,22.42427116,175.68,175.42,31.68619661]
[1736769734927,1.5888,175.67,175.56,22.42427116]
[1736769735535,1.5888,175.67,175.58,36.48388321]
[1736769735922,1.5847,175.71,175.61,36.48388321]
[1736769736129,1.5888,175.72,175.64,36.48388321]
[1736769736334,1.5847,175.76,175.67,36.48388321]
[1736769736529,1.5847,175.76,175.68,2.8496]
[1736769736826,1.5847,175.76,175.67,36.48388321]
[1736769737035,7.5,175.78,175.7,36.48388321]
[1736769737237,1.5888,175.79,175.73,36.48388321]
[1736769737627,1.7169,175.82,175.76,2.8483]
[1736769738030,1.7169,175.82,175.77,2.8481]
[1736769738339,1.5605,175.83,175.76,36.48388321]
[1736769738834,38.04438321,175.83,175.69,1.5521]
[1736769739028,3.3107,175.82,175.71,36.48388321]
[1736769739732,3.3107,175.82,175.76,2.8482]
[1736769739934,3.3107,175.82,175.71,36.48388321]
[1736769740132,1.7169,175.82,175.74,36.48388321]
[1736769740434,1.5605,175.83,175.74,36.48388321]
[1736769741031,1.5605,175.83,175.79,2.8478]
[1736769741633,7.52,175.84,175.8,2.8477]
[1736769742137,1.6005,175.9,175.8,39.33138321]
[1736769742333,1.6005,175.9,175.8,36.48388321]
[1736769742534,1.6005,175.9,175.77,36.48388321]
[1736769742731,1.6005,175.9,175.79,2.8477]
[1736769742732,2.8467,175.86,175.79,2.8477]
[1736769742926,1.6005,175.9,175.79,2.8477]
[1736769743233,1.6005,175.9,175.77,36.48388321]
[1736769743632,2.8469,175.85,175.79,2.8478]
[1736769743930,2.8469,175.85,175.77,36.48388321]
[1736769744132,2.8469,175.85,175.79,2.8478]
[1736769744833,1.6005,175.9,175.74,36.48388321]
[1736769745033,2.8471,175.84,175.74,36.48388321]
[1736769745234,36.48388321,175.88,175.74,36.48388321]
[1736769745442,36.48388321,175.88,175.71,36.48388321]
[1736769745639,36.48388321,175.88,175.74,36.48388321]
[1736769746536,2.8473,175.83,175.76,2.8483]
[1736769746838,36.48388321,175.88,175.76,2.8483]
[1736769747234,36.48388321,175.88,175.74,36.48388321]
[1736769747636,36.48388321,175.88,175.71,36.48388321]
[1736769747837,2.8483,175.77,175.71,39.33288321]
[1736769748035,7.52,175.81,175.71,36.48388321]
[1736769748339,1.5655,175.8,175.71,36.48388321]
[1736769748838,7.52,175.81,175.71,36.48388321]
[1736769749042,7.52,175.81,175.74,36.48388321]
[1736769749540,7.52,175.81,175.71,36.48388321]
[1736769750043,2.8478,175.79,175.73,2.8487]
[1736769750342,7.52,175.81,175.71,36.48388321]
[1736769751240,7.52,175.81,175.75,2.8484]
[1736769751742,7.52,175.81,175.69,1.5521]
[1736769751743,3.2711,175.84,175.74,36.48388321]
[1736769752339,3.2711,175.84,175.71,36.48388321]
[1736769753239,2.8481,175.78,175.72,2.8488]
[1736769753447,3.2711,175.84,175.71,36.48388321]
[1736769753840,2.8476,175.81,175.74,2.8486]
[1736769754138,3.2711,175.84,175.74,2.8486]
[1736769755636,2.848,175.79,175.74,2.8486]
[1736769756437,22.41313642,175.82,175.69,23.96523642]
[1736769757143,2.8483,175.77,175.72,2.849]
[1736769757444,22.41313642,175.82,175.72,2.849]
[1736769757647,2.8481,175.78,175.73,2.8488]
[1736769757949,3.2711,175.84,175.72,22.41313642]
[1736769758146,3.2711,175.84,175.69,1.5521]
[1736769758147,3.2711,175.84,175.76,22.41313642]
[1736769758849,2.8476,175.81,175.77,2.8481]
[1736769759236,3.2711,175.84,175.76,22.41313642]
[1736769759548,3.2711,175.84,175.73,22.41313642]
[1736769760046,2.8476,175.81,175.75,2.8484]
[1736769760237,3.2711,175.84,175.73,22.41313642]
[1736769760442,10.6911,175.84,175.73,22.41313642]
[1736769760747,2.8475,175.81,175.76,2.8482]
[1736769760947,3.2711,175.84,175.76,22.41313642]
[1736769761342,3.2711,175.84,175.73,22.41313642]
[1736769761542,3.2711,175.84,175.7,22.41313642]
[1736769761742,22.41313642,175.82,175.67,22.41313642]
[1736769761942,3.2711,175.84,175.64,22.41313642]
[1736769761943,22.41313642,175.79,175.64,22.41313642]
[1736769762146,22.41313642,175.76,175.62,1.6783]
[1736769762347,2.8499,175.67,175.63,2.8503]
[1736769762746,3.1563,175.75,175.62,1.6783]
[1736769763045,3.1563,175.75,175.62,4.5289]
[1736769763342,7.4,175.74,175.62,1.6783]
[1736769763549,2.8494,175.7,175.65,2.8501]
[1736769763751,7.4,175.74,175.65,2.8501]
[1736769763947,2.8493,175.7,175.65,2.8501]
[1736769764148,7.4,175.74,175.66,2.8499]
[1736769764750,7.4,175.74,175.69,2.8494]
[1736769765453,9.1177,175.78,175.7,22.41313642]
[1736769765653,1.7177,175.78,175.7,22.41313642]
[1736769765850,2.8482,175.77,175.72,2.8489]
[1736769766152,2.8482,175.77,175.7,22.41313642]
[1736769766549,2.8481,175.78,175.7,22.41313642]
[1736769766950,2.8481,175.78,175.72,2.8489]
[1736769767354,2.8482,175.77,175.72,2.8489]
[1736769767656,7.4,175.79,175.72,2.8489]
[1736769768055,10.6202,175.83,175.73,22.41313642]
[1736769768647,2.8477,175.8,175.73,22.41313642]
[1736769768852,10.6202,175.83,175.73,22.41313642]
[1736769769157,2.8483,175.77,175.73,22.41313642]
[1736769769457,10.6202,175.83,175.67,22.41313642]
[1736769769957,2.8487,175.74,175.69,2.8493]
[1736769770354,2.8488,175.73,175.68,2.8496]
[1736769770553,22.41313642,175.81,175.67,22.41313642]
[1736769770753,9.0735367,175.8,175.67,22.41313642]
[1736769770965,9.0735367,175.8,175.63,1.6654]
[1736769770966,22.41313642,175.78,175.64,25.26323642]
[1736769771159,9.0735367,175.77,175.63,1.6654]